[Event "*** Titled Tuesday Blitz"]
[Site "Chess.com"]
[Date "2020.05.19"]
[Round "6"]
[White "MilanJeremic"]
[Black "sommerpower"]
[Result "1-0"]
[WhiteElo "2305"]
[BlackElo "2441"]
[TimeControl "180+1"]
[EndTime "13:10:24 PDT"]
[Termination "MilanJeremic won on time"]

1. d4 {[%clk 0:03:00.9]} 1... Nf6 {[%clk 0:02:59.3]} 2. Nf3 {[%clk 0:02:59.6]}
2... e6 {[%clk 0:02:56.6]} 3. g3 {[%clk 0:02:59]} 3... b5 {[%clk 0:02:55.6]} 4.
Bg2 {[%clk 0:02:58.4]} 4... Bb7 {[%clk 0:02:55.7]} 5. O-O {[%clk 0:02:57.8]}
5... Be7 {[%clk 0:02:55.6]} 6. Bg5 {[%clk 0:02:57]} 6... O-O {[%clk 0:02:54.9]}
7. c3 {[%clk 0:02:56.3]} 7... h6 {[%clk 0:02:52.6]} 8. Bxf6 {[%clk 0:02:55.5]}
8... Bxf6 {[%clk 0:02:53.5]} 9. Nbd2 {[%clk 0:02:55.3]} 9... d6 {[%clk
0:02:51.2]} 10. e4 {[%clk 0:02:54.9]} 10... Nd7 {[%clk 0:02:50]} 11. Re1 {[%clk
0:02:54.1]} 11... c5 {[%clk 0:02:39.7]} 12. e5 {[%clk 0:02:51.4]} 12... Be7
{[%clk 0:02:38.5]} 13. exd6 {[%clk 0:02:50.7]} 13... Bxd6 {[%clk 0:02:37.6]} 14.
Ne4 {[%clk 0:02:47.9]} 14... Be7 {[%clk 0:02:31.2]} 15. dxc5 {[%clk 0:02:45.5]}
15... Nxc5 {[%clk 0:02:30.4]} 16. Nxc5 {[%clk 0:02:43.1]} 16... Bxc5 {[%clk
0:02:29.5]} 17. Qe2 {[%clk 0:02:41.8]} 17... Qb6 {[%clk 0:02:20.2]} 18. Red1
{[%clk 0:02:34.3]} 18... a5 {[%clk 0:02:15.8]} 19. a3 {[%clk 0:02:33.5]} 19...
Rfd8 {[%clk 0:01:52.2]} 20. Ne5 {[%clk 0:02:29.8]} 20... Bxg2 {[%clk 0:01:50.3]}
21. Kxg2 {[%clk 0:02:28.7]} 21... f6 {[%clk 0:01:34.2]} 22. Nd3 {[%clk
0:02:18.1]} 22... e5 {[%clk 0:01:33]} 23. Qe4 {[%clk 0:01:50.7]} 23... Be7
{[%clk 0:01:25.5]} 24. f4 {[%clk 0:01:38.9]} 24... Ra7 {[%clk 0:01:05.3]} 25.
fxe5 {[%clk 0:01:38.1]} 25... Rad7 {[%clk 0:01:05.1]} 26. exf6 {[%clk
0:01:26.6]} 26... Bxf6 {[%clk 0:01:04.3]} 27. Nf2 {[%clk 0:01:24.3]} 27... Rd2
{[%clk 0:01:02.3]} 28. Rxd2 {[%clk 0:01:18.9]} 28... Rxd2 {[%clk 0:01:03.2]} 29.
Qe8+ {[%clk 0:01:15.7]} 29... Kh7 {[%clk 0:01:01.8]} 30. Qe4+ {[%clk 0:01:14.1]}
30... g6 {[%clk 0:00:59.4]} 31. Rf1 {[%clk 0:01:13.3]} 31... Rxb2 {[%clk
0:00:57.3]} 32. h4 {[%clk 0:01:10.6]} 32... h5 {[%clk 0:00:55.6]} 33. Qd3 {[%clk
0:00:56.8]} 33... Qc6+ {[%clk 0:00:52.9]} 34. Kh3 {[%clk 0:00:49.5]} 34... Qc8+
{[%clk 0:00:47.2]} 35. Kg2 {[%clk 0:00:45.9]} 35... Qxc3 {[%clk 0:00:46.2]} 36.
Qd7+ {[%clk 0:00:44.3]} 36... Kh6 {[%clk 0:00:39.4]} 37. Kh3 {[%clk 0:00:40.9]}
37... Be5 {[%clk 0:00:31.3]} 38. Ne4 {[%clk 0:00:37.5]} 38... Qc2 {[%clk
0:00:29.9]} 39. Nf2 {[%clk 0:00:30.7]} 39... Qe2 {[%clk 0:00:27.8]} 40. Qd3
{[%clk 0:00:18.8]} 40... Qxd3 {[%clk 0:00:22]} 41. Nxd3 {[%clk 0:00:17.9]} 41...
Re2 {[%clk 0:00:21.8]} 42. Rb1 {[%clk 0:00:16]} 42... Re3 {[%clk 0:00:19.8]} 43.
Nxe5 {[%clk 0:00:14.3]} 43... Rxe5 {[%clk 0:00:19.3]} 44. Kg2 {[%clk 0:00:14.3]}
44... Kg7 {[%clk 0:00:19.3]} 45. Kf3 {[%clk 0:00:14.4]} 45... Kf6 {[%clk
0:00:19.7]} 46. Rc1 {[%clk 0:00:13.8]} 46... Rd5 {[%clk 0:00:17.2]} 47. Rc6+
{[%clk 0:00:13.5]} 47... Kf5 {[%clk 0:00:16.7]} 48. Rb6 {[%clk 0:00:12.7]} 48...
a4 {[%clk 0:00:14.9]} 49. Ke3 {[%clk 0:00:11.5]} 49... Rc5 {[%clk 0:00:13.1]}
50. Kf3 {[%clk 0:00:10.8]} 50... Rc3+ {[%clk 0:00:13.2]} 51. Kg2 {[%clk
0:00:10.9]} 51... Rb3 {[%clk 0:00:14.1]} 52. Kh3 {[%clk 0:00:09.6]} 52... Ke4
{[%clk 0:00:13.9]} 53. Rxg6 {[%clk 0:00:09.2]} 53... Rxa3 {[%clk 0:00:14]} 54.
Re6+ {[%clk 0:00:08.7]} 54... Kf5 {[%clk 0:00:13.3]} 55. Rb6 {[%clk 0:00:07.9]}
55... b4 {[%clk 0:00:12.7]} 56. Rxb4 {[%clk 0:00:07.7]} 56... Ke6 {[%clk
0:00:12.7]} 57. Rb5 {[%clk 0:00:05.9]} 57... Rb3 {[%clk 0:00:11.8]} 58. Rxh5
{[%clk 0:00:05.5]} 58... a3 {[%clk 0:00:11.9]} 59. Ra5 {[%clk 0:00:05.4]} 59...
Kd6 {[%clk 0:00:11.8]} 60. h5 {[%clk 0:00:05.3]} 60... Kc6 {[%clk 0:00:12.7]}
61. h6 {[%clk 0:00:04.7]} 61... Kb6 {[%clk 0:00:13.6]} 62. Ra8 {[%clk
0:00:04.6]} 62... Kb7 {[%clk 0:00:12.5]} 63. h7 {[%clk 0:00:04.3]} 1-0

[Event "*** Titled Tuesday Blitz"]
[Site "Chess.com"]
[Date "2020.05.19"]
[Round "6"]
[White "Stormeman100100"]
[Black "Djager97"]
[Result "0-1"]
[WhiteElo "2541"]
[BlackElo "2381"]
[TimeControl "180+1"]
[EndTime "13:10:25 PDT"]
[Termination "Djager97 won on time"]

1. e4 {[%clk 0:03:00.9]} 1... e5 {[%clk 0:02:59.7]} 2. Nf3 {[%clk 0:02:56.9]}
2... Nc6 {[%clk 0:03:00.2]} 3. Bb5 {[%clk 0:02:55]} 3... a6 {[%clk 0:03:00]} 4.
Ba4 {[%clk 0:02:54.8]} 4... Nf6 {[%clk 0:02:59.7]} 5. d3 {[%clk 0:02:53.3]} 5...
b5 {[%clk 0:02:54.3]} 6. Bb3 {[%clk 0:02:53.2]} 6... Be7 {[%clk 0:02:54.3]} 7.
O-O {[%clk 0:02:52.1]} 7... d6 {[%clk 0:02:54.6]} 8. a3 {[%clk 0:02:51.9]} 8...
O-O {[%clk 0:02:49.1]} 9. Nc3 {[%clk 0:02:51.7]} 9... Na5 {[%clk 0:02:48]} 10.
Ba2 {[%clk 0:02:52.1]} 10... Be6 {[%clk 0:02:46.2]} 11. b4 {[%clk 0:02:52.4]}
11... Bxa2 {[%clk 0:02:34.4]} 12. Nxa2 {[%clk 0:02:53.3]} 12... Nb7 {[%clk
0:02:29.9]} 13. c4 {[%clk 0:02:51.8]} 13... c5 {[%clk 0:02:02.9]} 14. Nc3 {[%clk
0:02:48.8]} 14... bxc4 {[%clk 0:01:53.4]} 15. dxc4 {[%clk 0:02:48.6]} 15... Qc7
{[%clk 0:01:52.4]} 16. b5 {[%clk 0:02:33]} 16... Na5 {[%clk 0:01:38.9]} 17. Bg5
{[%clk 0:02:15]} 17... Nxc4 {[%clk 0:01:25.7]} 18. Bxf6 {[%clk 0:02:15.1]} 18...
Bxf6 {[%clk 0:01:26]} 19. Nd5 {[%clk 0:02:15.5]} 19... Qd8 {[%clk 0:01:26.6]}
20. bxa6 {[%clk 0:02:06]} 20... Nb6 {[%clk 0:01:18.7]} 21. Rb1 {[%clk
0:01:35.8]} 21... Nxd5 {[%clk 0:01:17.8]} 22. Qxd5 {[%clk 0:01:35.8]} 22... Rxa6
{[%clk 0:01:17.7]} 23. Rb3 {[%clk 0:01:35.5]} 23... Qa8 {[%clk 0:01:14.7]} 24.
Rb7 {[%clk 0:01:27.9]} 24... Ra7 {[%clk 0:00:55.5]} 25. Rxa7 {[%clk 0:01:26.7]}
25... Qxa7 {[%clk 0:00:56.4]} 26. Qxd6 {[%clk 0:01:22.4]} 26... Rd8 {[%clk
0:00:51.4]} 27. Qc6 {[%clk 0:01:12.9]} 27... Qxa3 {[%clk 0:00:49.9]} 28. Qc7
{[%clk 0:01:11.9]} 28... Qc3 {[%clk 0:00:43.9]} 29. h3 {[%clk 0:01:02.6]} 29...
h6 {[%clk 0:00:41.9]} 30. Rb1 {[%clk 0:01:00.8]} 30... Qc2 {[%clk 0:00:29]} 31.
Rb7 {[%clk 0:00:47.3]} 31... Qxe4 {[%clk 0:00:18.3]} 32. Qxf7+ {[%clk
0:00:45.4]} 32... Kh8 {[%clk 0:00:14.8]} 33. Rd7 {[%clk 0:00:28.4]} 33... Rxd7
{[%clk 0:00:13.6]} 34. Qxd7 {[%clk 0:00:27.9]} 34... c4 {[%clk 0:00:14]} 35.
Qc8+ {[%clk 0:00:27.7]} 35... Kh7 {[%clk 0:00:13.9]} 36. Nd2 {[%clk 0:00:17.4]}
36... Qe1+ {[%clk 0:00:13.9]} 37. Nf1 {[%clk 0:00:17.8]} 37... Qe4 {[%clk
0:00:07.7]} 38. Ng3 {[%clk 0:00:15.3]} 38... Qd3 {[%clk 0:00:06.9]} 39. Nh5
{[%clk 0:00:08.7]} 39... Qd1+ {[%clk 0:00:04.5]} 40. Kh2 {[%clk 0:00:07.1]}
40... Qxh5 {[%clk 0:00:05.4]} 41. Qxc4 {[%clk 0:00:07.4]} 41... Qf5 {[%clk
0:00:05.7]} 42. Qe2 {[%clk 0:00:05.3]} 42... Qf4+ {[%clk 0:00:05.8]} 43. g3
{[%clk 0:00:05.8]} 43... Qf5 {[%clk 0:00:06.2]} 44. Kg2 {[%clk 0:00:05.9]} 44...
e4 {[%clk 0:00:06.7]} 45. Qc2 {[%clk 0:00:06.1]} 45... Qf3+ {[%clk 0:00:07.2]}
46. Kg1 {[%clk 0:00:06.2]} 46... Bd4 {[%clk 0:00:07.5]} 47. Qd2 {[%clk
0:00:05.3]} 47... Bf6 {[%clk 0:00:04.7]} 48. Qc2 {[%clk 0:00:05.4]} 48... Bd4
{[%clk 0:00:03.6]} 49. Qd2 {[%clk 0:00:05.7]} 49... Bc5 {[%clk 0:00:03.5]} 50.
Qc2 {[%clk 0:00:06.1]} 50... Bb6 {[%clk 0:00:02.6]} 51. Kf1 {[%clk 0:00:02.9]}
51... Bc7 {[%clk 0:00:02.7]} 52. Kg1 {[%clk 0:00:02.1]} 52... Bxg3 {[%clk
0:00:03.1]} 53. fxg3 {[%clk 0:00:02.2]} 53... Qxg3+ {[%clk 0:00:04]} 54. Kf1
{[%clk 0:00:02.5]} 54... Qxh3+ {[%clk 0:00:04.4]} 55. Kg1 {[%clk 0:00:03]} 55...
Qf3 {[%clk 0:00:04.9]} 56. Qc8 {[%clk 0:00:01.8]} 56... h5 {[%clk 0:00:03.2]}
57. Qe8 {[%clk 0:00:01.7]} 57... Qg4+ {[%clk 0:00:03.4]} 58. Kf2 {[%clk
0:00:01.6]} 58... Qf3+ {[%clk 0:00:03.9]} 59. Ke1 {[%clk 0:00:01.8]} 59... h4
{[%clk 0:00:04.2]} 0-1

[Event "*** Titled Tuesday Blitz"]
[Site "Chess.com"]
[Date "2020.05.19"]
[Round "6"]
[White "Angel_Hranitel_37"]
[Black "Savagelittlemole"]
[Result "0-1"]
[WhiteElo "2366"]
[BlackElo "2530"]
[TimeControl "180+1"]
[EndTime "13:10:27 PDT"]
[Termination "Savagelittlemole won by checkmate"]

1. d4 {[%clk 0:03:00.9]} 1... Nf6 {[%clk 0:02:59.4]} 2. Nf3 {[%clk 0:03:00.9]}
2... g6 {[%clk 0:02:58.8]} 3. g3 {[%clk 0:03:00.5]} 3... Bg7 {[%clk 0:02:57]} 4.
Bg2 {[%clk 0:03:01.4]} 4... O-O {[%clk 0:02:53.6]} 5. O-O {[%clk 0:03:01.7]}
5... d6 {[%clk 0:02:51.4]} 6. Nc3 {[%clk 0:03:01.4]} 6... Nbd7 {[%clk
0:02:50.6]} 7. a4 {[%clk 0:03:01.2]} 7... e5 {[%clk 0:02:50.1]} 8. dxe5 {[%clk
0:03:02.1]} 8... dxe5 {[%clk 0:02:49]} 9. Nd2 {[%clk 0:03:02.5]} 9... c6 {[%clk
0:02:48.8]} 10. Nc4 {[%clk 0:03:02.3]} 10... Qc7 {[%clk 0:02:42.1]} 11. Qd6
{[%clk 0:02:53.7]} 11... Qxd6 {[%clk 0:02:41.5]} 12. Nxd6 {[%clk 0:02:54.6]}
12... Nc5 {[%clk 0:02:37.7]} 13. b4 {[%clk 0:02:40.8]} 13... Ne6 {[%clk
0:02:34.6]} 14. b5 {[%clk 0:02:40.9]} 14... Nd4 {[%clk 0:02:30.4]} 15. Ra2
{[%clk 0:02:32]} 15... Be6 {[%clk 0:02:29.8]} 16. Rb2 {[%clk 0:02:29.3]} 16...
cxb5 {[%clk 0:02:24.3]} 17. axb5 {[%clk 0:02:27.9]} 17... Rfd8 {[%clk
0:02:19.9]} 18. Nxb7 {[%clk 0:02:26.7]} 18... Rd7 {[%clk 0:01:58.7]} 19. Nc5
{[%clk 0:02:24.2]} 19... Rc8 {[%clk 0:01:57]} 20. Nxd7 {[%clk 0:02:24.2]} 20...
Nxd7 {[%clk 0:01:57.6]} 21. Nd5 {[%clk 0:01:45.7]} 21... Nxe2+ {[%clk
0:01:53.4]} 22. Kh1 {[%clk 0:01:46]} 22... Rc5 {[%clk 0:01:52]} 23. Ne7+ {[%clk
0:01:34.6]} 23... Kf8 {[%clk 0:01:52.2]} 24. Nc6 {[%clk 0:01:35.2]} 24... e4
{[%clk 0:01:48.5]} 25. Rb1 {[%clk 0:01:31.5]} 25... Rxc2 {[%clk 0:01:43.3]} 26.
Bxe4 {[%clk 0:01:31.2]} 26... Ra2 {[%clk 0:01:39.9]} 27. Bf3 {[%clk 0:01:16.3]}
27... Bf5 {[%clk 0:01:32.6]} 28. Rb3 {[%clk 0:01:04.6]} 28... Nxc1 {[%clk
0:01:30.3]} 29. Rxc1 {[%clk 0:01:05.5]} 29... Rxf2 {[%clk 0:01:29.2]} 30. Re1
{[%clk 0:00:25.2]} 30... Nc5 {[%clk 0:01:24.5]} 31. Rbe3 {[%clk 0:00:25.1]}
31... Bf6 {[%clk 0:01:21.5]} 32. Nxa7 {[%clk 0:00:22.6]} 32... Nd3 {[%clk
0:01:17.9]} 33. R1e2 {[%clk 0:00:21.3]} 33... Rf1+ {[%clk 0:01:13.6]} 34. Kg2
{[%clk 0:00:21.8]} 34... Ra1 {[%clk 0:01:12.8]} 35. Nc6 {[%clk 0:00:20]} 35...
Rb1 {[%clk 0:01:09.9]} 36. Re8+ {[%clk 0:00:16]} 36... Kg7 {[%clk 0:01:08.5]}
37. Be4 {[%clk 0:00:15.1]} 37... Rxb5 {[%clk 0:01:05.9]} 38. Bxf5 {[%clk
0:00:13.9]} 38... Rxf5 {[%clk 0:01:06.8]} 39. Ne7 {[%clk 0:00:11.7]} 39... Ra5
{[%clk 0:00:58.5]} 40. Rg8+ {[%clk 0:00:11.1]} 40... Kh6 {[%clk 0:00:58.4]} 41.
Nc6 {[%clk 0:00:10.3]} 41... Ra1 {[%clk 0:00:55.3]} 42. Re4 {[%clk 0:00:09.8]}
42... Ra2+ {[%clk 0:00:53.2]} 43. Kf3 {[%clk 0:00:08.5]} 43... Rxh2 {[%clk
0:00:52.7]} 44. Re3 {[%clk 0:00:05]} 44... Nc5 {[%clk 0:00:48.6]} 45. Ne5 {[%clk
0:00:03.1]} 45... Bxe5 {[%clk 0:00:45.7]} 46. Rxe5 {[%clk 0:00:04]} 46... Ne6
{[%clk 0:00:44.6]} 47. Re8 {[%clk 0:00:03.1]} 47... Ng5+ {[%clk 0:00:42.6]} 48.
Kf4 {[%clk 0:00:02.7]} 48... Rf2+ {[%clk 0:00:40.4]} 49. Ke3 {[%clk 0:00:03.2]}
49... Rf3+ {[%clk 0:00:38.7]} 50. Ke2 {[%clk 0:00:04]} 50... Rxg3 {[%clk
0:00:36.8]} 51. Ra8 {[%clk 0:00:04.8]} 51... f5 {[%clk 0:00:34.7]} 52. Re7
{[%clk 0:00:04.9]} 52... Kh5 {[%clk 0:00:30.1]} 53. Ra1 {[%clk 0:00:05.5]} 53...
Kg4 {[%clk 0:00:29.2]} 54. Kf2 {[%clk 0:00:04.9]} 54... Nh3+ {[%clk 0:00:26.1]}
55. Ke2 {[%clk 0:00:05.1]} 55... h5 {[%clk 0:00:26.1]} 56. Ra4+ {[%clk
0:00:04.5]} 56... f4 {[%clk 0:00:24.4]} 57. Ree4 {[%clk 0:00:01.7]} 57... g5
{[%clk 0:00:24.3]} 58. Re5 {[%clk 0:00:02.1]} 58... Rg2+ {[%clk 0:00:21.5]} 59.
Kf1 {[%clk 0:00:01.6]} 59... Kg3 {[%clk 0:00:20.1]} 60. Rf5 {[%clk 0:00:01.8]}
60... g4 {[%clk 0:00:17.4]} 61. Rfxf4 {[%clk 0:00:02.2]} 61... Nxf4 {[%clk
0:00:16.4]} 62. Ra3+ {[%clk 0:00:03]} 62... Kh2 {[%clk 0:00:14.6]} 63. Ra4
{[%clk 0:00:03.9]} 63... Nh3 {[%clk 0:00:14.2]} 64. Rxg4 {[%clk 0:00:03.3]}
64... Rxg4 {[%clk 0:00:13.6]} 65. Ke1 {[%clk 0:00:02.6]} 65... Rg2 {[%clk
0:00:13.8]} 66. Kf1 {[%clk 0:00:02.9]} 66... Kg3 {[%clk 0:00:14.2]} 67. Ke1
{[%clk 0:00:02.8]} 67... Kf3 {[%clk 0:00:14.7]} 68. Kf1 {[%clk 0:00:03.7]} 68...
Rg1# {[%clk 0:00:14.7]} 0-1

[Event "*** Titled Tuesday Blitz"]
[Site "Chess.com"]
[Date "2020.05.19"]
[Round "6"]
[White "Meri-Arabidze"]
[Black "jerry_77"]
[Result "1/2-1/2"]
[WhiteElo "2607"]
[BlackElo "2477"]
[TimeControl "180+1"]
[EndTime "13:10:28 PDT"]
[Termination "Game drawn by stalemate"]

1. d4 {[%clk 0:03:00.9]} 1... Nf6 {[%clk 0:02:59.6]} 2. c4 {[%clk 0:03:01.2]}
2... e6 {[%clk 0:02:59.7]} 3. Nf3 {[%clk 0:03:01.5]} 3... d5 {[%clk 0:02:59.4]}
4. Nc3 {[%clk 0:03:01.5]} 4... Bb4 {[%clk 0:02:59.1]} 5. Bg5 {[%clk 0:03:01.2]}
5... h6 {[%clk 0:02:58.9]} 6. Bxf6 {[%clk 0:03:01.4]} 6... Qxf6 {[%clk
0:02:59.8]} 7. Qa4+ {[%clk 0:03:01.7]} 7... Nc6 {[%clk 0:02:59.9]} 8. e3 {[%clk
0:03:02.3]} 8... O-O {[%clk 0:02:56.2]} 9. Be2 {[%clk 0:03:02]} 9... Bd7 {[%clk
0:02:55.6]} 10. Qc2 {[%clk 0:02:58.1]} 10... dxc4 {[%clk 0:02:55.1]} 11. O-O
{[%clk 0:02:55.8]} 11... Bxc3 {[%clk 0:02:53.9]} 12. Qxc3 {[%clk 0:02:50.5]}
12... b5 {[%clk 0:02:53.7]} 13. a4 {[%clk 0:02:49.6]} 13... a6 {[%clk
0:02:53.5]} 14. Rfc1 {[%clk 0:02:43.7]} 14... Ne7 {[%clk 0:02:46.4]} 15. e4
{[%clk 0:02:30]} 15... Bc6 {[%clk 0:02:30.4]} 16. Qe3 {[%clk 0:02:22.2]} 16...
Ng6 {[%clk 0:02:23.5]} 17. b3 {[%clk 0:02:15.1]} 17... Qf4 {[%clk 0:02:18.8]}
18. Nd2 {[%clk 0:02:00.2]} 18... f5 {[%clk 0:01:40.2]} 19. bxc4 {[%clk
0:01:32.2]} 19... b4 {[%clk 0:01:38]} 20. d5 {[%clk 0:01:27.6]} 20... Bd7 {[%clk
0:01:29.4]} 21. exf5 {[%clk 0:01:19.1]} 21... exf5 {[%clk 0:01:26]} 22. Qxf4
{[%clk 0:01:10.9]} 22... Nxf4 {[%clk 0:01:26.9]} 23. Bf1 {[%clk 0:01:11.4]}
23... Rae8 {[%clk 0:01:22.3]} 24. c5 {[%clk 0:01:06.9]} 24... Ne2+ {[%clk
0:01:21.8]} 25. Bxe2 {[%clk 0:01:07]} 25... Rxe2 {[%clk 0:01:22.7]} 26. Nb3
{[%clk 0:01:01.9]} 26... Rb2 {[%clk 0:01:22.1]} 27. Na5 {[%clk 0:00:57.1]} 27...
Re8 {[%clk 0:01:15.6]} 28. c6 {[%clk 0:00:50.4]} 28... Bc8 {[%clk 0:01:14.5]}
29. Rab1 {[%clk 0:00:45.6]} 29... Ree2 {[%clk 0:01:09.2]} 30. Rxb2 {[%clk
0:00:44]} 30... Rxb2 {[%clk 0:01:10.1]} 31. h4 {[%clk 0:00:40.6]} 31... Kf7
{[%clk 0:01:09.2]} 32. d6 {[%clk 0:00:35.8]} 32... cxd6 {[%clk 0:01:08.8]} 33.
Nc4 {[%clk 0:00:33]} 33... Ra2 {[%clk 0:01:07.3]} 34. Nxd6+ {[%clk 0:00:32.9]}
34... Kf6 {[%clk 0:01:02.3]} 35. Nxc8 {[%clk 0:00:33.8]} 35... b3 {[%clk
0:01:02.6]} 36. Kh2 {[%clk 0:00:26.8]} 36... Rc2 {[%clk 0:01:01.5]} 37. Rb1
{[%clk 0:00:23.9]} 37... Rxc6 {[%clk 0:01:01.1]} 38. Rxb3 {[%clk 0:00:17.7]}
38... Rxc8 {[%clk 0:01:00.7]} 39. Rb6+ {[%clk 0:00:18.3]} 39... Ke5 {[%clk
0:01:00.8]} 40. Rxa6 {[%clk 0:00:18.9]} 40... Rc4 {[%clk 0:01:00.9]} 41. g3
{[%clk 0:00:18.1]} 41... Rc2 {[%clk 0:00:53.2]} 42. Kg2 {[%clk 0:00:18.5]} 42...
Rc7 {[%clk 0:00:51.4]} 43. Ra8 {[%clk 0:00:18.1]} 43... g5 {[%clk 0:00:51]} 44.
h5 {[%clk 0:00:17.6]} 44... Kf6 {[%clk 0:00:50.3]} 45. a5 {[%clk 0:00:17.8]}
45... Kg7 {[%clk 0:00:50.7]} 46. a6 {[%clk 0:00:18.2]} 46... Rc3 {[%clk
0:00:50.9]} 47. Rb8 {[%clk 0:00:17.9]} 47... Ra3 {[%clk 0:00:49.3]} 48. Rb7+
{[%clk 0:00:18.1]} 48... Kf6 {[%clk 0:00:49.4]} 49. Rb6+ {[%clk 0:00:17.1]}
49... Kg7 {[%clk 0:00:48.9]} 50. Rb7+ {[%clk 0:00:16.6]} 50... Kf6 {[%clk
0:00:48.9]} 51. a7 {[%clk 0:00:17.2]} 51... g4 {[%clk 0:00:47.5]} 52. Kf1 {[%clk
0:00:14.2]} 52... Kg5 {[%clk 0:00:45.2]} 53. Ke2 {[%clk 0:00:13.4]} 53... Kxh5
{[%clk 0:00:45.5]} 54. Rg7 {[%clk 0:00:14]} 54... Ra2+ {[%clk 0:00:26.4]} 55.
Kd3 {[%clk 0:00:13.9]} 55... f4 {[%clk 0:00:22.3]} 56. gxf4 {[%clk 0:00:13.6]}
56... g3 {[%clk 0:00:22.7]} 57. fxg3 {[%clk 0:00:13.4]} 57... Ra3+ {[%clk
0:00:22.8]} 58. Ke4 {[%clk 0:00:12.4]} 58... Ra4+ {[%clk 0:00:22.3]} 59. Kd5
{[%clk 0:00:11.4]} 59... Ra5+ {[%clk 0:00:21.2]} 60. Ke6 {[%clk 0:00:09.1]}
60... Re5+ {[%clk 0:00:18]} 61. Kd6 {[%clk 0:00:06.7]} 61... Rd5+ {[%clk
0:00:18.3]} 62. Kc6 {[%clk 0:00:02]} 62... Rc5+ {[%clk 0:00:18.6]} 63. Kb6
{[%clk 0:00:02.6]} 63... Rb5+ {[%clk 0:00:19]} 64. Ka6 {[%clk 0:00:03]} 64...
Ra5+ {[%clk 0:00:19.4]} 65. Kb6 {[%clk 0:00:03.3]} 65... Rb5+ {[%clk 0:00:19.5]}
66. Kc6 {[%clk 0:00:03.2]} 66... Rc5+ {[%clk 0:00:19.8]} 67. Kb7 {[%clk
0:00:03.3]} 67... Rb5+ {[%clk 0:00:19.6]} 68. Ka8 {[%clk 0:00:03.6]} 68... Rb8+
{[%clk 0:00:19.6]} 69. Kxb8 {[%clk 0:00:03.9]} 1/2-1/2

[Event "*** Titled Tuesday Blitz"]
[Site "Chess.com"]
[Date "2020.05.19"]
[Round "6"]
[White "Sanyura"]
[Black "vaishali2001"]
[Result "0-1"]
[WhiteElo "2491"]
[BlackElo "2632"]
[TimeControl "180+1"]
[EndTime "13:10:29 PDT"]
[Termination "vaishali2001 won on time"]

1. Nf3 {[%clk 0:03:00.9]} 1... d5 {[%clk 0:02:56.4]} 2. g3 {[%clk 0:03:00.5]}
2... g6 {[%clk 0:02:55.6]} 3. d3 {[%clk 0:02:59.8]} 3... Bg7 {[%clk 0:02:55.8]}
4. Bg2 {[%clk 0:03:00.4]} 4... e5 {[%clk 0:02:55.8]} 5. O-O {[%clk 0:03:00.4]}
5... Ne7 {[%clk 0:02:56.3]} 6. Nbd2 {[%clk 0:03:00.5]} 6... O-O {[%clk
0:02:56.7]} 7. e4 {[%clk 0:03:01]} 7... Nbc6 {[%clk 0:02:57.1]} 8. exd5 {[%clk
0:03:01.1]} 8... Nxd5 {[%clk 0:02:58]} 9. Nc4 {[%clk 0:03:01.7]} 9... Re8 {[%clk
0:02:55.4]} 10. Re1 {[%clk 0:03:00.6]} 10... h6 {[%clk 0:02:54.3]} 11. c3 {[%clk
0:02:57]} 11... a5 {[%clk 0:02:53.2]} 12. a4 {[%clk 0:02:53.2]} 12... Bf5 {[%clk
0:02:34.8]} 13. Nh4 {[%clk 0:02:27.3]} 13... Be6 {[%clk 0:02:30.2]} 14. Nf3
{[%clk 0:02:27.4]} 14... Bf5 {[%clk 0:02:28.4]} 15. Nh4 {[%clk 0:02:05.9]} 15...
Be6 {[%clk 0:02:27.7]} 16. Nf3 {[%clk 0:02:05.4]} 16... f6 {[%clk 0:01:32]} 17.
Nfd2 {[%clk 0:01:50.5]} 17... Bf7 {[%clk 0:01:30.8]} 18. Ne4 {[%clk 0:01:49.2]}
18... f5 {[%clk 0:01:25.4]} 19. Nc5 {[%clk 0:01:49.2]} 19... b6 {[%clk
0:01:25.6]} 20. Nb3 {[%clk 0:01:48.3]} 20... Qd7 {[%clk 0:01:16]} 21. h4 {[%clk
0:01:40.9]} 21... Rad8 {[%clk 0:01:15.8]} 22. Qf3 {[%clk 0:01:28.5]} 22... Nde7
{[%clk 0:00:45]} 23. Bf1 {[%clk 0:01:28.2]} 23... e4 {[%clk 0:00:42.3]} 24. dxe4
{[%clk 0:01:23.5]} 24... fxe4 {[%clk 0:00:38.6]} 25. Qxe4 {[%clk 0:01:03]} 25...
Nf5 {[%clk 0:00:32.3]} 26. Bf4 {[%clk 0:00:39.7]} 26... Rxe4 {[%clk 0:00:31.5]}
27. Rxe4 {[%clk 0:00:40.2]} 27... Bd5 {[%clk 0:00:28.8]} 28. Ree1 {[%clk
0:00:39.9]} 28... Qf7 {[%clk 0:00:28.7]} 29. Nbd2 {[%clk 0:00:38.6]} 29... Re8
{[%clk 0:00:25.5]} 30. Rxe8+ {[%clk 0:00:30.6]} 30... Qxe8 {[%clk 0:00:26.4]}
31. Bd3 {[%clk 0:00:16.9]} 31... Qd7 {[%clk 0:00:24.3]} 32. Re1 {[%clk
0:00:15.6]} 32... Bf7 {[%clk 0:00:16.1]} 33. Be4 {[%clk 0:00:14.8]} 33... Bd5
{[%clk 0:00:15.9]} 34. Bd3 {[%clk 0:00:11.6]} 34... Kh7 {[%clk 0:00:15.7]} 35.
h5 {[%clk 0:00:10.6]} 35... g5 {[%clk 0:00:14.7]} 36. Ne3 {[%clk 0:00:05.7]}
36... Be6 {[%clk 0:00:14.4]} 37. Nxf5 {[%clk 0:00:05.3]} 37... Bxf5 {[%clk
0:00:15.3]} 38. Bxf5+ {[%clk 0:00:04.7]} 38... Qxf5 {[%clk 0:00:16.2]} 39. Be3
{[%clk 0:00:05.6]} 39... Ne5 {[%clk 0:00:14.4]} 40. Kg2 {[%clk 0:00:06.1]} 40...
g4 {[%clk 0:00:14]} 41. Bf4 {[%clk 0:00:05.9]} 41... Nf3 {[%clk 0:00:13.8]} 42.
Nxf3 {[%clk 0:00:05.3]} 42... gxf3+ {[%clk 0:00:12.8]} 43. Kxf3 {[%clk
0:00:05.9]} 43... Qxh5+ {[%clk 0:00:13]} 44. g4 {[%clk 0:00:06.3]} 44... Qd5+
{[%clk 0:00:12.6]} 45. Kg3 {[%clk 0:00:06.3]} 45... Kg6 {[%clk 0:00:12.3]} 46.
Re7 {[%clk 0:00:03.8]} 46... Qd3+ {[%clk 0:00:10.8]} 47. f3 {[%clk 0:00:03.9]}
47... Qf1 {[%clk 0:00:10.1]} 48. Be3 {[%clk 0:00:03.6]} 48... Qc4 {[%clk
0:00:08.9]} 49. Re4 {[%clk 0:00:02.8]} 49... Qd5 {[%clk 0:00:08.5]} 50. c4
{[%clk 0:00:03]} 50... Qd6+ {[%clk 0:00:07.9]} 51. Bf4 {[%clk 0:00:03.3]} 51...
Qc6 {[%clk 0:00:07.7]} 52. b3 {[%clk 0:00:02.7]} 52... Qc5 {[%clk 0:00:06.8]}
53. Be3 {[%clk 0:00:02.6]} 53... Qd6+ {[%clk 0:00:06.4]} 54. Bf4 {[%clk
0:00:03]} 54... Qd7 {[%clk 0:00:06.9]} 55. Be3 {[%clk 0:00:02.3]} 55... Bf8
{[%clk 0:00:07.4]} 56. Bf4 {[%clk 0:00:02.6]} 56... Bd6 {[%clk 0:00:07.8]} 57.
Kg2 {[%clk 0:00:02.5]} 57... Bxf4 {[%clk 0:00:07.6]} 58. Rxf4 {[%clk 0:00:03.4]}
58... Qd2+ {[%clk 0:00:08]} 59. Kg3 {[%clk 0:00:03.9]} 59... Qd6 {[%clk
0:00:08.9]} 60. c5 {[%clk 0:00:01.7]} 60... bxc5 {[%clk 0:00:09.3]} 0-1